fUSD/lending_fUSD_20250110
["ID","MTS","AMOUNT","RATE_DAILY","PERIOD"]
[348421448,1736524255369,-1051.14,9.559e-05,2]
[348421449,1736524255382,-500.0,9.559e-05,2]
[348421450,1736524255392,-500.0,9.559e-05,2]
[348421451,1736524255401,-1335.65,9.559e-05,2]
[348421452,1736524255411,-500.0,9.559e-05,2]
[348421453,1736524255422,-941.46,9.559e-05,2]
[348421454,1736524255433,-1314.49,9.559e-05,2]
[348421455,1736524255443,-468.32229011,9.559e-05,2]
[348421456,1736524255453,-500.0,9.559e-05,2]
[348421457,1736524255463,-500.0,9.559e-05,2]
[348421458,1736524255474,-500.0,9.559e-05,2]
[348421459,1736524255484,-500.0,9.559e-05,2]
[348421460,1736524255495,-500.0,9.559e-05,2]
[348421461,1736524255505,-2098.32,9.559e-05,2]
[348421462,1736524255516,-1156.61,9.559e-05,2]
[348421463,1736524255526,-659.09,9.559e-05,2]
[348421464,1736524255537,-1381.15,9.559e-05,2]
[348421465,1736524255546,-500.0,9.559e-05,2]
[348421466,1736524255556,-500.0,9.559e-05,2]
[348421467,1736524255565,-500.0,9.559e-05,2]
[348421468,1736524255575,-500.0,9.559e-05,2]
[348421469,1736524255585,-1912.15,9.559e-05,2]
[348421470,1736524255595,-511.82,9.559e-05,2]
[348421471,1736524255606,-951.49,9.559e-05,2]
[348421472,1736524255617,-622.11,9.559e-05,2]
[348421473,1736524255629,-500.0,9.559e-05,2]
[348421474,1736524255639,-500.0,9.56e-05,2]
[348421475,1736524255648,-500.0,9.56e-05,2]
[348421476,1736524255658,-500.0,9.56e-05,2]
[348421477,1736524255667,-952.88,9.56e-05,2]
[348421478,1736524255677,-500.0,9.56e-05,2]
[348421479,1736524255687,-500.0,9.56e-05,2]
[348421480,1736524255697,-705.22,9.56e-05,2]
[348421481,1736524255709,-974.31,9.56e-05,2]
[348421482,1736524255720,-500.0,9.56e-05,2]
[348421483,1736524255730,-1038.13,9.56e-05,2]
[348421484,1736524255740,-500.0,9.56e-05,2]
[348421485,1736524255750,-579.82,9.56e-05,2]
[348421486,1736524255760,-1012.33,9.56e-05,2]
[348421487,1736524255771,-648.63,9.56e-05,2]
[348421488,1736524255781,-500.0,9.56e-05,2]
[348421489,1736524255792,-571.87,9.56e-05,2]
[348421490,1736524255803,-500.0,9.56e-05,2]
[348421491,1736524255814,-1172.84,9.56e-05,2]
[348421492,1736524255824,-796.64,9.56e-05,2]
[348421493,1736524255835,-974.54,9.56e-05,2]
[348421494,1736524255845,-500.0,9.56e-05,2]
[348421495,1736524255855,-1273.5,9.56e-05,2]
[348421496,1736524255866,-659.75,9.56e-05,2]
[348421497,1736524255879,-886.68,9.56e-05,2]
[348421498,1736524255889,-500.0,9.56e-05,2]
[348421499,1736524255899,-500.0,9.56e-05,2]
[348421500,1736524255909,-1963.72,9.56e-05,2]
[348421501,1736524255923,-6187.03,9.56e-05,2]
[348421502,1736524255933,-1822.9,9.56e-05,2]
[348421503,1736524255942,-2565.68,9.56e-05,2]
[348421504,1736524255953,-3150.34,9.56e-05,2]
[348421505,1736524255964,-4721.83,9.561e-05,2]
[348421506,1736524255974,-2272.62,9.561e-05,2]
[348421507,1736524255984,-1591.49,9.561e-05,2]
[348421508,1736524255995,-2329.78,9.561e-05,2]
[348421509,1736524256006,-1432.42,9.561e-05,2]
[348421510,1736524256016,-1975.6,9.572e-05,2]
[348421511,1736524256026,-169.37,9.578e-05,2]
[348421512,1736524256037,-1883.34,9.599e-05,2]
[348421513,1736524256047,-1704.97,9.599e-05,2]
[348421514,1736524256057,-772.13,9.599e-05,2]
[348421515,1736524256068,-4013.17,9.599e-05,2]
[348421516,1736524256078,-1747.53,9.673e-05,2]
[348421517,1736524256088,-500.0,9.673e-05,2]
[348421518,1736524256099,-1348.6,9.673e-05,2]
[348421519,1736524256109,-3203.72,9.673e-05,2]
[348421520,1736524256119,-1647.23,9.673e-05,2]
[348421521,1736524256134,-1103.85,9.673e-05,2]
[348421522,1736524256143,-1226.84,9.673e-05,2]
[348421523,1736524256154,-843.28,9.673e-05,2]
[348421524,1736524256165,-1796.31,9.673e-05,2]
[348421525,1736524256175,-1043.14,9.673e-05,2]
[348421526,1736524256185,-1316.27,9.673e-05,2]
[348421527,1736524256195,-1311.99,9.673e-05,2]
[348421528,1736524256205,-2157.87,9.673e-05,2]
[348421529,1736524256215,-2366.16,9.673e-05,2]
[348421530,1736524256225,-2149.91,9.673e-05,2]
[348421531,1736524256236,-14536.52703582,9.69e-05,2]
[348421532,1736524256246,-30000.0,9.69e-05,2]
[348421533,1736524256256,-1083.9231,9.734e-05,2]
[348421534,1736524256266,-2005.8726,9.734e-05,2]
[348421535,1736524256275,-8696.06,9.773e-05,2]
[348421536,1736524256286,-1684.62,9.773e-05,2]
[348421537,1736524256296,-1188.63,9.773e-05,2]
[348421538,1736524256306,-1197.62,9.773e-05,2]
[348421539,1736524256316,-2275.37,9.773e-05,2]
[348421540,1736524256327,-662.96,9.773e-05,2]
[348421541,1736524256337,-1191.38,9.773e-05,2]
[348421542,1736524256347,-584.27805932,9.774e-05,2]
[348421543,1736524256357,-2000.0,9.8e-05,2]
[348421544,1736524256368,-250.0,9.8e-05,2]
[348421545,1736524256382,-250.0,9.8e-05,2]
[348421546,1736524256391,-250.0,9.8e-05,2]
[348421547,1736524256401,-250.0,9.8e-05,2]
[348421548,1736524256410,-250.0,9.8e-05,2]
[348421549,1736524256420,-250.0,9.8e-05,2]
[348421550,1736524256430,-250.0,9.8e-05,2]
[348421551,1736524256440,-250.0,9.8e-05,2]
[348421552,1736524256450,-250.0,9.8e-05,2]
[348421553,1736524256460,-250.0,9.8e-05,2]
[348421554,1736524256469,-250.0,9.8e-05,2]
[348421555,1736524256480,-250.0,9.8e-05,2]
[348421556,1736524256490,-250.0,9.8e-05,2]
[348421557,1736524256500,-250.0,9.8e-05,2]
[348421558,1736524256510,-250.0,9.8e-05,2]
[348421559,1736524256520,-250.0,9.8e-05,2]
[348421560,1736524256530,-250.0,9.8e-05,2]
[348421561,1736524256540,-250.0,9.8e-05,2]
[348421562,1736524256550,-250.0,9.8e-05,2]
[348421563,1736524256560,-250.0,9.8e-05,2]
[348421564,1736524256570,-250.0,9.8e-05,2]
[348421565,1736524256581,-250.0,9.8e-05,2]
[348421566,1736524256591,-250.0,9.8e-05,2]
[348421567,1736524256602,-250.0,9.8e-05,2]
[348421568,1736524256614,-250.0,9.8e-05,2]
[348421569,1736524256626,-250.0,9.8e-05,2]
[348421570,1736524256635,-500.0,9.831e-05,2]
[348421571,1736524256646,-500.0,9.831e-05,2]
[348421572,1736524256656,-222.89755768,9.831e-05,2]
[348421573,1736524256666,-500.0,9.831e-05,2]
[348421574,1736524256675,-500.0,9.831e-05,2]
[348421575,1736524256685,-500.0,9.831e-05,2]
[348421576,1736524256695,-1593.59,9.831e-05,2]
[348421577,1736524256706,-500.0,9.831e-05,2]
[348421578,1736524256716,-1043.52,9.831e-05,2]
[348421579,1736524256727,-500.0,9.831e-05,2]
[348421580,1736524256738,-876.27,9.831e-05,2]
[348421581,1736524256748,-500.0,9.831e-05,2]
[348421582,1736524256758,-2264.41,9.831e-05,2]
[348421583,1736524256768,-1584.14,9.831e-05,2]
[348421584,1736524256778,-1819.95,9.831e-05,2]
[348421585,1736524256788,-500.0,9.831e-05,2]
[348421586,1736524256799,-1002.74,9.831e-05,2]
[348421587,1736524256808,-3030.78,9.831e-05,2]
[348421588,1736524256818,-2135.04,9.831e-05,2]
[348421589,1736524256828,-500.0,9.831e-05,2]
[348421590,1736524256838,-1215.89,9.831e-05,2]
[348421591,1736524256848,-1651.51,9.831e-05,2]
[348421592,1736524256858,-1582.69,9.831e-05,2]
[348421593,1736524256868,-3156.38,9.831e-05,2]
[348421594,1736524256882,-500.0,9.831e-05,2]
[348421595,1736524256892,-873.09,9.831e-05,2]
[348421596,1736524256902,-965.26,9.831e-05,2]
[348421597,1736524256917,-507.74,9.831e-05,2]
[348421598,1736524256927,-570.26,9.831e-05,2]
[348421599,1736524256937,-1258.78,9.831e-05,2]
[348421600,1736524256947,-1471.01,9.831e-05,2]
[348421601,1736524256959,-1409.72,9.831e-05,2]
[348421602,1736524256968,-761.8,9.832e-05,2]
[348421603,1736524256978,-500.0,9.832e-05,2]
[348421604,1736524256989,-939.91,9.832e-05,2]
[348421605,1736524256999,-961.78,9.832e-05,2]
[348421606,1736524257009,-822.48,9.832e-05,2]
[348421607,1736524257020,-566.63,9.832e-05,2]
[348421608,1736524257031,-500.0,9.832e-05,2]
[348421609,1736524257041,-597.14,9.832e-05,2]
[348421610,1736524257051,-500.0,9.832e-05,2]
[348421611,1736524257061,-745.23,9.832e-05,2]
[348421612,1736524257070,-1068.97,9.832e-05,2]
[348421613,1736524257081,-822.16,9.832e-05,2]
[348421614,1736524257091,-858.49,9.832e-05,2]
[348421615,1736524257101,-500.0,9.832e-05,2]
[348421616,1736524257111,-846.15,9.832e-05,2]
[348421617,1736524257121,-500.0,9.832e-05,2]
[348421618,1736524257134,-500.0,9.832e-05,2]
[348421619,1736524257144,-500.0,9.832e-05,2]
[348421620,1736524257154,-500.0,9.832e-05,2]
[348421621,1736524257164,-500.0,9.832e-05,2]
[348421622,1736524257175,-1010.23,9.832e-05,2]
[348421623,1736524257186,-1140.26,9.832e-05,2]
[348421624,1736524257195,-500.0,9.832e-05,2]
[348421625,1736524257205,-709.1,9.832e-05,2]
[348421626,1736524257216,-500.0,9.832e-05,2]
[348421627,1736524257227,-933.11,9.832e-05,2]
[348421628,1736524257238,-1046.94,9.832e-05,2]
[348421629,1736524257247,-602.2,9.832e-05,2]
[348421630,1736524257259,-888.35,9.832e-05,2]
[348421631,1736524257271,-500.0,9.832e-05,2]
[348421632,1736524257282,-500.0,9.832e-05,2]
[348421633,1736524257291,-500.0,9.832e-05,2]
[348421634,1736524257303,-627.38,9.832e-05,2]
[348421635,1736524257313,-1166.68,9.832e-05,2]
[348421636,1736524257324,-500.0,9.832e-05,2]
[348421637,1736524257335,-967.77,9.832e-05,2]
[348421638,1736524257346,-500.0,9.832e-05,2]
[348421639,1736524257358,-500.0,9.832e-05,2]
[348421640,1736524257368,-1005.93,9.832e-05,2]
[348421641,1736524257380,-781.9,9.832e-05,2]
[348421642,1736524257390,-500.0,9.832e-05,2]
[348421643,1736524257400,-2150.01,9.832e-05,2]
[348421644,1736524257409,-500.0,9.832e-05,2]
[348421645,1736524257419,-1052.34,9.832e-05,2]
[348421646,1736524257429,-912.91,9.832e-05,2]
[348421647,1736524257439,-1815.27,9.832e-05,2]
[348421648,1736524257450,-500.0,9.832e-05,2]
[348421649,1736524257460,-856.07,9.832e-05,2]
[348421650,1736524257471,-966.55,9.832e-05,2]
[348421651,1736524257481,-1861.8,9.832e-05,2]
[348421652,1736524257492,-688.9,9.832e-05,2]
[348421653,1736524257503,-1068.54,9.832e-05,2]
[348421654,1736524257513,-978.06,9.832e-05,2]
[348421655,1736524257523,-500.0,9.832e-05,2]
[348421656,1736524257534,-587.28,9.832e-05,2]
[348421657,1736524257543,-877.06,9.832e-05,2]
[348421658,1736524257553,-766.28,9.832e-05,2]
[348421659,1736524257637,-2611.4,9.832e-05,2]
[348421660,1736524257648,-1556.83,9.832e-05,2]
[348421661,1736524257658,-826.2,9.832e-05,2]
[348421662,1736524257667,-7495.58,9.832e-05,2]
[348421663,1736524257677,-784.4,9.832e-05,2]
[348421664,1736524257687,-797.2,9.832e-05,2]
[348421665,1736524257696,-915.4,9.832e-05,2]
[348421666,1736524257706,-1078.79,9.832e-05,2]
[348421667,1736524257715,-1363.41,9.832e-05,2]
[348421668,1736524257725,-500.0,9.832e-05,2]
[348421669,1736524257735,-1339.84,9.832e-05,2]
[348421670,1736524257744,-1267.14,9.832e-05,2]
[348421671,1736524257753,-1698.13,9.832e-05,2]
[348421672,1736524257762,-949.94,9.832e-05,2]
[348421673,1736524257772,-1813.78,9.832e-05,2]
[348421674,1736524257781,-500.0,9.832e-05,2]
[348421675,1736524257790,-500.0,9.832e-05,2]
[348421676,1736524257799,-5166.39,9.832e-05,2]
[348421677,1736524257808,-3593.7,9.832e-05,2]
[348421678,1736524257818,-1020.92,9.832e-05,2]
[348421679,1736524257827,-1241.67,9.832e-05,2]
[348421680,1736524257837,-742.95,9.832e-05,2]
[348421681,1736524257846,-675.3,9.832e-05,2]
[348421682,1736524257856,-1052.3,9.832e-05,2]
[348421683,1736524257866,-792.94,9.832e-05,2]
[348421684,1736524257876,-675.43,9.833e-05,2]
[348421685,1736524257886,-714.54,9.833e-05,2]
[348421686,1736524257895,-500.0,9.833e-05,2]
[348421687,1736524257905,-3297.03,9.833e-05,2]
[348421688,1736524257917,-764.62,9.833e-05,2]
[348421689,1736524257928,-764.62,9.833e-05,2]
[348421690,1736524257937,-500.0,9.833e-05,2]
[348421691,1736524257947,-621.27,9.833e-05,2]
[348421692,1736524257956,-500.0,9.833e-05,2]
[348421693,1736524257966,-500.0,9.833e-05,2]
[348421694,1736524257975,-500.0,9.833e-05,2]
[348421695,1736524257984,-535.32,9.833e-05,2]
[348421696,1736524257995,-1434.01,9.833e-05,2]
[348421697,1736524258004,-500.0,9.833e-05,2]
[348421698,1736524258013,-635.49,9.833e-05,2]
[348421699,1736524258023,-1010.79,9.833e-05,2]
[348421700,1736524258032,-500.0,9.833e-05,2]
[348421701,1736524258041,-1419.64,9.833e-05,2]
[348421702,1736524258050,-396.78604168,9.833e-05,2]
[348421703,1736524258060,-609.13,9.833e-05,2]
[348421704,1736524258070,-1774.64,9.833e-05,2]
[348421705,1736524258079,-1039.15,9.833e-05,2]
[348421706,1736524258089,-528.76,9.833e-05,2]
[348421707,1736524258098,-503.41766657,9.833e-05,2]
[348421708,1736524258108,-994.56,9.833e-05,2]
[348421709,1736524258118,-593.02,9.833e-05,2]
[348421710,1736524258130,-814.5,9.833e-05,2]
[348421711,1736524258140,-1240.07,9.833e-05,2]
[348421712,1736524258149,-868.17,9.833e-05,2]
[348421713,1736524258158,-953.37,9.833e-05,2]
[348421714,1736524258168,-500.0,9.833e-05,2]
[348421715,1736524258177,-397.55420369,9.833e-05,2]
[348421716,1736524258188,-500.0,9.833e-05,2]
[348421717,1736524258199,-789.01,9.833e-05,2]
[348421718,1736524258209,-1265.34,9.833e-05,2]
[348421719,1736524258218,-500.0,9.833e-05,2]
[348421720,1736524258228,-500.0,9.833e-05,2]
[348421721,1736524258238,-3093.1,9.833e-05,2]
[348421722,1736524258247,-864.42,9.833e-05,2]
[348421723,1736524258256,-500.0,9.833e-05,2]
[348421724,1736524258265,-500.0,9.833e-05,2]
[348421725,1736524258275,-1402.75,9.833e-05,2]
[348421726,1736524258284,-1766.75,9.833e-05,2]
[348421727,1736524258295,-500.0,9.833e-05,2]
[348421728,1736524258306,-555.91,9.833e-05,2]
[348421729,1736524258315,-652.78,9.833e-05,2]
[348421730,1736524258324,-608.24,9.833e-05,2]
[348421731,1736524258334,-4401.25,9.833e-05,2]
[348421732,1736524258343,-500.0,9.833e-05,2]
[348421733,1736524258352,-500.0,9.833e-05,2]
[348421734,1736524258362,-290.88887996,9.833e-05,7]
[348421735,1736524258371,-500.0,9.833e-05,2]
[348421736,1736524258383,-500.0,9.833e-05,2]
[348421737,1736524258392,-880.99,9.833e-05,2]
[348421738,1736524258402,-500.0,9.833e-05,2]
[348421739,1736524258411,-4953.9,9.833e-05,2]
[348421740,1736524258421,-500.0,9.833e-05,2]
[348421741,1736524258431,-500.0,9.833e-05,2]
[348421742,1736524258442,-1040.05,9.833e-05,2]
[348421743,1736524258452,-500.0,9.833e-05,2]
[348421744,1736524258462,-500.0,9.833e-05,2]
[348421745,1736524258472,-283.57073739,9.833e-05,2]
[348421746,1736524258482,-728.84,9.833e-05,2]
[348421747,1736524258492,-787.78,9.833e-05,2]
[348421748,1736524258503,-901.88,9.833e-05,2]
[348421749,1736524258513,-895.76,9.833e-05,2]
[348421750,1736524258523,-677.22,9.833e-05,2]
[348421751,1736524258532,-500.0,9.833e-05,2]
[348421752,1736524258542,-2539.7,9.833e-05,2]
[348421753,1736524258552,-812.91,9.833e-05,2]
[348421754,1736524258563,-500.0,9.833e-05,2]
[348421755,1736524258573,-255.2,9.833e-05,2]
[348421756,1736524258582,-500.0,9.833e-05,2]
[348421757,1736524258592,-626.16,9.833e-05,2]
[348421758,1736524258602,-500.0,9.833e-05,2]
[348421759,1736524258612,-500.0,9.833e-05,2]
[348421760,1736524258621,-544.97,9.833e-05,2]
[348421761,1736524258633,-500.0,9.833e-05,2]
[348421762,1736524258643,-500.0,9.833e-05,2]
[348421763,1736524258653,-707.45,9.833e-05,2]
[348421764,1736524258663,-5186.84,9.833e-05,2]
[348421765,1736524258672,-500.0,9.833e-05,2]
[348421766,1736524258681,-500.0,9.833e-05,2]
[348421767,1736524258691,-686.88,9.833e-05,2]
[348421768,1736524258700,-500.0,9.833e-05,2]
[348421769,1736524258710,-500.0,9.833e-05,2]
[348421770,1736524258719,-657.79,9.833e-05,2]
[348421771,1736524258729,-500.0,9.833e-05,2]
[348421772,1736524258739,-631.46145658,9.833e-05,2]
[348421773,1736524258748,-500.0,9.833e-05,2]
[348421774,1736524258757,-503.04145965,9.833e-05,2]
[348421775,1736524258766,-856.71,9.833e-05,2]
[348421776,1736524258775,-783.7,9.833e-05,2]
[348421777,1736524258785,-794.78,9.833e-05,2]
[348421778,1736524258794,-1062.86,9.833e-05,2]
[348421779,1736524258803,-500.0,9.833e-05,2]
[348421780,1736524258812,-3899.76,9.833e-05,2]
[348421781,1736524258822,-500.0,9.833e-05,2]
[348421782,1736524258831,-500.0,9.833e-05,2]
[348421783,1736524258840,-500.0,9.833e-05,2]
[348421784,1736524258851,-634.52,9.833e-05,2]
[348421785,1736524258860,-500.0,9.833e-05,2]
[348421786,1736524258870,-500.0,9.833e-05,2]
[348421787,1736524258881,-1022.03,9.833e-05,2]
[348421788,1736524258891,-939.3,9.833e-05,2]
[348421789,1736524258900,-691.24,9.833e-05,2]
[348421790,1736524258909,-500.0,9.833e-05,2]
[348421791,1736524258922,-4054.05,9.833e-05,2]
[348421792,1736524258932,-813.45,9.833e-05,2]
[348421793,1736524258941,-500.0,9.833e-05,2]
[348421794,1736524258950,-500.0,9.833e-05,2]
[348421795,1736524258960,-500.0,9.833e-05,2]
[348421796,1736524258970,-500.0,9.833e-05,2]
[348421797,1736524258979,-500.0,9.833e-05,2]
[348421798,1736524258989,-1362.38,9.833e-05,2]
[348421799,1736524258999,-500.0,9.833e-05,2]
[348421800,1736524259009,-500.0,9.833e-05,2]
[348421801,1736524259019,-1051.14,9.833e-05,2]
[348421802,1736524259028,-500.0,9.833e-05,2]
[348421803,1736524259037,-500.0,9.833e-05,2]
[348421804,1736524259047,-1335.65,9.833e-05,2]
[348421805,1736524259057,-941.46,9.833e-05,2]
[348421806,1736524259066,-1314.49,9.833e-05,2]
[348421807,1736524259076,-500.0,9.833e-05,2]
[348421808,1736524259086,-500.0,9.833e-05,2]
[348421809,1736524259095,-500.0,9.833e-05,2]
[348421810,1736524259106,-500.0,9.833e-05,2]
[348421811,1736524259116,-2098.32,9.833e-05,2]
[348421812,1736524259126,-1156.61,9.833e-05,2]
[348421813,1736524259136,-659.09,9.833e-05,2]
[348421814,1736524259146,-1381.15,9.833e-05,2]
[348421815,1736524259155,-500.0,9.833e-05,2]
[348421816,1736524259165,-500.0,9.833e-05,2]
[348421817,1736524259176,-500.0,9.833e-05,2]
[348421818,1736524259188,-1912.15,9.833e-05,2]
[348421819,1736524259198,-511.82,9.833e-05,2]
[348421820,1736524259208,-951.49,9.833e-05,2]
[348421821,1736524259218,-622.11,9.833e-05,2]
[348421822,1736524259229,-500.0,9.833e-05,2]
[348421823,1736524259239,-500.0,9.834e-05,2]
[348421824,1736524259249,-500.0,9.834e-05,2]
[348421825,1736524259258,-500.0,9.834e-05,2]
[348421826,1736524259268,-952.88,9.834e-05,2]
[348421827,1736524259278,-500.0,9.834e-05,2]
[348421828,1736524259288,-500.0,9.834e-05,2]
[348421829,1736524259298,-705.22,9.834e-05,2]
[348421830,1736524259308,-974.31,9.834e-05,2]
[348421831,1736524259319,-500.0,9.834e-05,2]
[348421832,1736524259329,-1038.13,9.834e-05,2]
[348421833,1736524259339,-500.0,9.834e-05,2]
[348421834,1736524259348,-579.82,9.834e-05,2]
[348421835,1736524259358,-1012.33,9.834e-05,2]
[348421836,1736524259368,-648.63,9.834e-05,2]
[348421837,1736524259379,-500.0,9.834e-05,2]
[348421838,1736524259389,-571.87,9.834e-05,2]
[348421839,1736524259398,-500.0,9.834e-05,2]
[348421840,1736524259409,-1172.84,9.834e-05,2]
[348421841,1736524259420,-796.64,9.834e-05,2]
[348421842,1736524259429,-974.54,9.834e-05,2]
[348421843,1736524259440,-500.0,9.834e-05,2]
[348421844,1736524259450,-1273.5,9.834e-05,2]
[348421845,1736524259459,-659.75,9.834e-05,2]
[348421846,1736524259470,-886.68,9.834e-05,2]
[348421847,1736524259479,-500.0,9.834e-05,2]
[348421848,1736524259488,-500.0,9.834e-05,2]
[348421849,1736524259498,-1963.72,9.834e-05,2]
[348421850,1736524259507,-6187.03,9.834e-05,2]
[348421851,1736524259517,-1822.9,9.834e-05,2]
[348421852,1736524259527,-2565.68,9.834e-05,2]
[348421853,1736524259538,-3150.34,9.834e-05,2]
[348421854,1736524259548,-4721.83,9.835e-05,2]
[348421855,1736524259558,-2272.62,9.835e-05,2]
[348421856,1736524259567,-1591.49,9.835e-05,2]
[348421857,1736524259577,-2329.78,9.835e-05,2]
[348421858,1736524259586,-1432.42,9.835e-05,2]
[348421859,1736524259595,-1955.14,9.836e-05,2]
[348421860,1736524259605,-150.0,9.836e-05,2]
[348421861,1736524259615,-874.24,9.836e-05,2]
[348421862,1736524259624,-437.12,9.836e-05,2]
[348421863,1736524259636,-437.12,9.836e-05,2]
[348421864,1736524259646,-1975.6,9.846e-05,2]
[348421865,1736524259656,-1883.34,9.873e-05,2]
[348421866,1736524259666,-1704.97,9.873e-05,2]
[348421867,1736524259676,-772.13,9.873e-05,2]
[348421868,1736524259687,-4013.17,9.873e-05,2]
[348421869,1736524259697,-2603.25117454,9.929e-05,2]
[348421870,1736524259707,-1747.53,9.947e-05,2]
[348421871,1736524259717,-500.0,9.947e-05,2]
[348421872,1736524259726,-1348.6,9.947e-05,2]
[348421873,1736524259736,-3203.72,9.947e-05,2]
[348421874,1736524259746,-1647.23,9.947e-05,2]
[348421875,1736524259756,-1103.85,9.947e-05,2]
[348421876,1736524259765,-1226.84,9.947e-05,2]
[348421877,1736524259776,-843.28,9.947e-05,2]
[348421878,1736524259786,-1796.31,9.947e-05,2]
[348421879,1736524259797,-1043.14,9.947e-05,2]
[348421880,1736524259807,-1316.27,9.947e-05,2]
[348421881,1736524259817,-1311.99,9.947e-05,2]
[348421882,1736524259827,-2157.87,9.947e-05,2]
[348421883,1736524259836,-2366.16,9.947e-05,2]
[348421884,1736524259847,-2149.91,9.947e-05,2]
[348421885,1736524259857,-794.97,9.991e-05,2]
[348421886,1736524259868,-5376.97106439,0.0001,2]
[348421887,1736524259879,-620.32783949,0.0001,2]
[348421888,1736524259889,-1142.87,0.0001,2]
[348421889,1736524259900,-408.44,0.0001,2]
[348421890,1736524259911,-2603.25117469,0.0001,2]
[348421891,1736524259923,-2603.25117454,0.0001,2]
[348421892,1736524259934,-2603.25117454,0.0001,2]
[348421893,1736524259944,-2603.25117454,0.0001,2]
[348421894,1736524259954,-2603.25117454,0.0001,2]
[348421895,1736524259966,-2603.25117454,0.0001,2]
[348421896,1736524259976,-2603.25117454,0.0001,2]
[348421897,1736524259986,-2603.25117454,0.0001,2]
[348421898,1736524259998,-2603.25117454,0.0001,2]
[348421899,1736524260009,-2603.25117454,0.0001,2]
[348421900,1736524260021,-2603.25117454,0.0001,2]
[348421901,1736524260031,-2603.25117454,0.0001,2]
[348421902,1736524260043,-2603.25117454,0.0001,2]
[348421903,1736524260053,-1000.0,0.0001,2]
[348421904,1736524260064,-1000.0,0.0001,2]
[348421905,1736524260075,-1000.0,0.0001,2]
[348421906,1736524260086,-1000.0,0.0001,2]
[348421907,1736524260096,-1000.0,0.0001,2]
[348421908,1736524260106,-1000.0,0.0001,2]
[348421909,1736524260116,-1000.0,0.0001,2]
[348421910,1736524260127,-1000.0,0.0001,2]
[348421911,1736524260137,-1000.0,0.0001,2]
[348421912,1736524260147,-1000.0,0.0001,2]
[348421913,1736524260158,-1006.41,0.0001,2]
[348421914,1736524260168,-208.33693399,0.0001,2]
[348421915,1736524260178,-208.33693386,0.0001,2]
[348421916,1736524260188,-208.33693386,0.0001,2]
[348421917,1736524260198,-208.33693386,0.0001,2]
[348421918,1736524260208,-208.33693386,0.0001,2]
[348421919,1736524260219,-208.33693386,0.0001,2]
[348421920,1736524260230,-2603.25117454,0.00010033,2]
[348421921,1736524260241,-208.33693386,0.00010033,2]
[348421922,1736524260251,-8696.06,0.00010047,2]
[348421923,1736524260262,-1684.62,0.00010047,2]
[348421924,1736524260272,-1188.63,0.00010047,2]
[348421925,1736524260283,-1197.62,0.00010047,2]
[348421926,1736524260294,-2275.37,0.00010047,2]
[348421927,1736524260304,-662.96,0.00010047,2]
[348421928,1736524260313,-1191.38,0.00010047,2]
[348421929,1736524260323,-7414.89535705,0.00010097,4]
[348421930,1736524260334,-2015.0,0.00010098,2]
[348421931,1736524260344,-1267.0,0.00010098,2]
[348421932,1736524260354,-589.369,0.00010098,2]
[348421933,1736524260364,-151.802,0.00010098,2]
[348421934,1736524260374,-638.196,0.00010098,2]
[348421935,1736524260387,-1861.0,0.00010098,2]
[348421936,1736524260396,-820.0,0.00010098,2]
[348421937,1736524260406,-917.0,0.00010098,2]
[348421938,1736524260417,-2944.0,0.00010098,2]
[348421939,1736524260427,-1259.0,0.00010098,2]
[348421940,1736524260438,-537.0,0.00010098,2]
[348421941,1736524260448,-3977.0,0.00010098,2]
[348421942,1736524260459,-150.0,0.00010098,2]
[348421943,1736524260469,-3896.0,0.00010098,2]
[348421944,1736524260479,-1244.922,0.00010098,2]
[348421945,1736524260489,-500.0,0.00010105,2]
[348421946,1736524260500,-500.0,0.00010105,2]
[348421947,1736524260510,-500.0,0.00010105,2]